fUST/lending_fUST_20250425
["ID","MTS","AMOUNT","RATE_DAILY","PERIOD"]
[358932872,1745554251128,-151.0,0.0001726,2]
[358932873,1745554251137,-587.38,0.0001726,2]
[358932874,1745554251147,-500.0,0.0001726,2]
[358932875,1745554251156,-151.0,0.0001726,2]
[358932876,1745554251166,-151.0,0.0001726,2]
[358932877,1745554251175,-151.0,0.0001726,2]
[358932878,1745554251184,-151.0,0.0001726,2]
[358932879,1745554251194,-1027.62,0.0001726,2]
[358932880,1745554251203,-339.042468,0.0001726,2]
[358932881,1745554251213,-339.042468,0.0001726,2]
[358932882,1745554251222,-339.042468,0.0001726,2]
[358932883,1745554251231,-339.042468,0.0001726,2]
[358932884,1745554251240,-541.14,0.0001726,2]
[358932885,1745554251249,-661.483738,0.0001726,2]
[358932886,1745554251259,-661.483738,0.0001726,2]
[358932888,1745554251268,-151.0,0.0001726,2]
[358932889,1745554251277,-229.069496,0.0001726,2]
[358932890,1745554251287,-661.483738,0.0001726,2]
[358932891,1745554251296,-661.483738,0.0001726,2]
[358932892,1745554251305,-2404.57,0.0001726,2]
[358932893,1745554251316,-1356.89,0.0001726,2]
[358932894,1745554251326,-1284.72,0.0001726,2]
[358932895,1745554251335,-151.0,0.0001726,2]
[358932896,1745554251344,-151.0,0.0001726,2]
[358932897,1745554251353,-265.331122,0.0001726,2]
[358932898,1745554251362,-1420.05,0.0001726,2]
[358932899,1745554251371,-151.0,0.0001726,2]
[358932900,1745554251381,-151.0,0.0001726,2]
[358932901,1745554251391,-1169.66,0.0001726,2]
[358932902,1745554251400,-1481.05,0.0001726,2]
[358932903,1745554251410,-1110.54,0.0001726,2]
[358932904,1745554251419,-2629.38,0.0001726,2]
[358932905,1745554251428,-500.0,0.0001726,2]
[358932906,1745554251437,-500.0,0.0001726,2]
[358932907,1745554251447,-1113.73,0.0001726,2]
[358932908,1745554251456,-500.0,0.0001726,2]
[358932909,1745554251466,-500.0,0.0001726,2]
[358932910,1745554251475,-892.5,0.0001726,2]
[358932911,1745554251485,-1190.0,0.0001726,2]
[358932912,1745554251494,-500.0,0.0001726,2]
[358932913,1745554251504,-1379.64,0.0001726,2]
[358932914,1745554251514,-553.22,0.0001726,2]
[358932915,1745554251523,-3490.12,0.0001726,2]
[358932916,1745554251532,-151.0,0.0001726,2]
[358932917,1745554251541,-151.0,0.0001726,2]
[358932918,1745554251551,-500.0,0.0001726,2]
[358932919,1745554251560,-500.0,0.0001726,2]
[358932920,1745554251570,-151.0,0.0001726,2]
[358932921,1745554251579,-151.0,0.0001726,2]
[358932922,1745554251589,-511.2,0.0001726,2]
[358932923,1745554251599,-297.433369,0.0001726,2]
[358932924,1745554251609,-500.0,0.0001726,2]
[358932925,1745554251622,-3203.44,0.0001726,2]
[358932926,1745554251631,-1231.8,0.0001726,2]
[358932927,1745554251641,-884.35,0.0001726,2]
[358932928,1745554251650,-693.12,0.0001726,2]
[358932929,1745554251661,-1135.4,0.0001726,2]
[358932930,1745554251671,-168.178,0.00017268,2]
[358932931,1745554251680,-403.0,0.00017268,2]
[358932932,1745554251689,-151.0,0.00017323,2]
[358932933,1745554251702,-151.0,0.00017323,2]
[358932934,1745554251712,-740.945797,0.00017323,2]
[358932935,1745554251721,-740.945797,0.00017323,2]
[358932936,1745554251731,-235.382057,0.00017323,2]
[358932937,1745554251741,-235.382057,0.00017323,2]
[358932938,1745554251751,-150.0,0.00017323,2]
[358932939,1745554251762,-150.0,0.00017323,2]
[358932940,1745554251772,-150.0,0.00017323,2]
[358932941,1745554251782,-150.0,0.00017323,2]
[358932942,1745554251792,-545.0,0.00017323,2]
[358932943,1745554251802,-706.0,0.00017323,2]
[358932944,1745554251811,-550.8500681,0.00017358,2]
[358932945,1745554251821,-1000.0,0.00017397,2]
[358932946,1745554251831,-151.0,0.00017434,2]
[358932947,1745554251840,-151.0,0.00017434,2]
[358932948,1745554251849,-151.0,0.00017434,2]
[358932949,1745554251860,-151.0,0.000175,2]
[358932950,1745554251869,-301.36475054,0.00017509,2]
[358932951,1745554251879,-151.0,0.00017534,2]
[358932952,1745554251888,-1417.28,0.00017534,2]
[358932953,1745554251898,-151.0,0.00017534,2]
[358932954,1745554251908,-151.0,0.00017534,2]
[358932955,1745554251918,-151.0,0.00017534,2]
[358932956,1745554251929,-151.0,0.00017534,2]
[358932957,1745554251939,-151.0,0.00017534,2]
[358932958,1745554251949,-151.0,0.00017534,2]
[358932959,1745554251958,-177.842254,0.00017534,2]
[358932960,1745554251968,-177.842254,0.00017534,2]
[358932961,1745554251977,-177.842254,0.00017534,2]
[358932962,1745554251987,-177.842254,0.00017534,2]
[358932963,1745554252128,-500.0,0.00017534,2]
[358932964,1745554252139,-151.0,0.00017534,2]
[358932965,1745554252149,-151.0,0.00017534,2]
[358932966,1745554252158,-151.0,0.00017534,2]
[358932967,1745554252167,-151.0,0.00017534,2]
[358932968,1745554252176,-151.0,0.00017534,2]
[358932969,1745554252185,-151.0,0.00017534,2]
[358932970,1745554252195,-211.466984,0.00017534,2]
[358932971,1745554252204,-500.0,0.00017534,2]
[358932972,1745554252213,-1198.77,0.00017534,2]
[358932973,1745554252223,-1253.2,0.00017534,2]
[358932974,1745554252232,-721.33,0.00017534,2]
[358932975,1745554252242,-1160.28,0.00017534,2]
[358932976,1745554252252,-994.15,0.00017534,2]
[358932977,1745554252262,-151.0,0.00017534,2]
[358932978,1745554252273,-159.976195,0.00017534,2]
[358932979,1745554252283,-151.0,0.00017534,2]
[358932980,1745554252293,-151.0,0.00017534,2]
[358932981,1745554252303,-1297.33,0.00017534,2]
[358932982,1745554252312,-500.0,0.00017534,2]
[358932983,1745554252321,-1302.57,0.00017534,2]
[358932984,1745554252330,-514.07,0.00017534,2]
[358932985,1745554252340,-712.78,0.00017534,2]
[358932986,1745554252350,-436.658045,0.00017534,2]
[358932987,1745554252362,-436.658045,0.00017534,2]
[358932988,1745554252372,-740.945797,0.00017534,2]
[358932989,1745554252381,-740.945797,0.00017534,2]
[358932990,1745554252391,-235.382057,0.00017534,2]
[358932991,1745554252399,-235.382057,0.00017534,2]
[358932992,1745554252409,-500.0,0.00017534,2]
[358932993,1745554252418,-1294.08,0.00017534,2]
[358932994,1745554252427,-1157.13,0.00017534,2]
[358932995,1745554252436,-1336.38,0.00017534,2]
[358932996,1745554252445,-2166.66,0.00017534,2]
[358932997,1745554252455,-1383.46,0.00017534,2]
[358932998,1745554252464,-588.63,0.00017534,2]
[358932999,1745554252473,-151.0,0.00017534,2]
[358933000,1745554252483,-587.38,0.00017534,2]
[358933001,1745554252491,-500.0,0.00017534,2]
[358933002,1745554252501,-151.0,0.00017534,2]
[358933003,1745554252510,-297.55096,0.00017534,2]
[358933004,1745554252519,-1027.62,0.00017534,2]
[358933005,1745554252528,-339.042468,0.00017534,2]
[358933006,1745554252536,-339.042468,0.00017534,2]
[358933007,1745554252545,-541.14,0.00017534,2]
[358933008,1745554252555,-661.483738,0.00017534,2]
[358933009,1745554252564,-661.483738,0.00017534,2]
[358933010,1745554252573,-2404.57,0.00017534,2]
[358933011,1745554252583,-1356.89,0.00017534,2]
[358933012,1745554252593,-1284.72,0.00017534,2]
[358933013,1745554252603,-151.0,0.00017534,2]
[358933014,1745554252613,-1420.05,0.00017534,2]
[358933015,1745554252628,-151.0,0.00017534,2]
[358933016,1745554252637,-1169.66,0.00017534,2]
[358933017,1745554252646,-1481.05,0.00017534,2]
[358933018,1745554252655,-1110.54,0.00017534,2]
[358933019,1745554252666,-2629.38,0.00017534,2]
[358933020,1745554252675,-500.0,0.00017534,2]
[358933021,1745554252684,-500.0,0.00017534,2]
[358933022,1745554252696,-1113.73,0.00017534,2]
[358933023,1745554252705,-500.0,0.00017534,2]
[358933024,1745554252714,-500.0,0.00017534,2]
[358933025,1745554252724,-892.5,0.00017534,2]
[358933026,1745554252733,-1190.0,0.00017534,2]
[358933027,1745554252743,-500.0,0.00017534,2]
[358933028,1745554252752,-1379.64,0.00017534,2]
[358933029,1745554252761,-553.22,0.00017534,2]
[358933030,1745554252771,-3490.12,0.00017534,2]
[358933031,1745554252780,-151.0,0.00017534,2]
[358933032,1745554252790,-500.0,0.00017534,2]
[358933033,1745554252799,-500.0,0.00017534,2]
[358933034,1745554252809,-151.0,0.00017534,2]
[358933035,1745554252818,-511.2,0.00017534,2]
[358933036,1745554252828,-500.0,0.00017534,2]
[358933037,1745554252837,-3203.44,0.00017534,2]
[358933038,1745554252847,-1231.8,0.00017534,2]
[358933039,1745554252857,-884.35,0.00017534,2]
[358933040,1745554252866,-693.12,0.00017534,2]
[358933041,1745554252876,-1135.4,0.00017534,2]
[358933042,1745554252885,-151.0,0.000177,2]
[358933043,1745554252895,-153.0,0.00017784,2]
[358933044,1745554252904,-310.79928929,0.00017792,2]
[358933045,1745554252913,-215.0738,0.00017797,2]
[358933046,1745554252922,-1000.0,0.000178,2]
[358933047,1745554252932,-1000.0,0.000178,3]
[358933048,1745554252941,-3083.16701339,0.000178,2]
[358933049,1745554252950,-3083.16701333,0.000178,2]
[358933050,1745554252959,-151.0,0.00017808,2]
[358933051,1745554252968,-151.0,0.00017808,2]
[358933052,1745554252978,-1417.28,0.00017808,2]
[358933053,1745554252987,-226.864085,0.00017808,2]
[358933054,1745554252996,-151.0,0.00017808,2]
[358933055,1745554253005,-191.072614,0.00017808,2]
[358933056,1745554253014,-177.842254,0.00017808,2]
[358933057,1745554253023,-177.842254,0.00017808,2]
[358933058,1745554253033,-500.0,0.00017808,2]
[358933059,1745554253042,-152.729607,0.00017808,2]
[358933060,1745554253053,-288.640384,0.00017808,2]
[358933061,1745554253062,-151.0,0.00017808,2]
[358933062,1745554253072,-151.0,0.00017808,2]
[358933063,1745554253081,-369.81746182,0.00017808,2]
[358933064,1745554253090,-1198.77,0.00017808,2]
[358933065,1745554253099,-1253.2,0.00017808,2]
[358933066,1745554253108,-721.33,0.00017808,2]
[358933067,1745554253117,-1160.28,0.00017808,2]
[358933068,1745554253127,-994.15,0.00017808,2]
[358933069,1745554253136,-151.0,0.00017808,2]
[358933070,1745554253145,-151.0,0.00017808,2]
[358933071,1745554253155,-159.976195,0.00017808,2]
[358933072,1745554253375,-159.976195,0.00017808,2]
[358933073,1745554253385,-151.0,0.00017808,2]
[358933074,1745554253394,-151.0,0.00017808,2]
[358933075,1745554253403,-183.267484,0.00017808,2]
[358933076,1745554253412,-1297.33,0.00017808,2]
[358933077,1745554253421,-500.0,0.00017808,2]
[358933078,1745554253431,-1302.57,0.00017808,2]
[358933079,1745554253440,-514.07,0.00017808,2]
[358933080,1745554253450,-712.78,0.00017808,2]
[358933081,1745554253459,-436.658045,0.00017808,2]
[358933082,1745554253469,-436.658045,0.00017808,2]
[358933083,1745554253478,-436.658045,0.00017808,2]
[358933084,1745554253488,-436.658045,0.00017808,2]
[358933085,1745554253497,-740.945797,0.00017808,2]
[358933086,1745554253507,-740.945797,0.00017808,2]
[358933087,1745554253516,-740.945797,0.00017808,2]
[358933088,1745554253526,-740.945797,0.00017808,2]
[358933089,1745554253535,-235.382057,0.00017808,2]
[358933090,1745554253544,-235.382057,0.00017808,2]
[358933091,1745554253554,-235.382057,0.00017808,2]
[358933092,1745554253563,-235.382057,0.00017808,2]
[358933093,1745554253573,-500.0,0.00017808,2]
[358933094,1745554253583,-1294.08,0.00017808,2]
[358933095,1745554253592,-1157.13,0.00017808,2]
[358933096,1745554253602,-1336.38,0.00017808,2]
[358933097,1745554253611,-2166.66,0.00017808,2]
[358933098,1745554253620,-1383.46,0.00017808,2]
[358933099,1745554253633,-588.63,0.00017808,2]
[358933100,1745554253642,-151.0,0.00017808,2]
[358933101,1745554253651,-587.38,0.00017808,2]
[358933102,1745554253661,-500.0,0.00017808,2]
[358933103,1745554253674,-151.0,0.00017808,2]
[358933104,1745554253684,-1027.62,0.00017808,2]
[358933105,1745554253694,-339.042468,0.00017808,2]
[358933106,1745554253704,-339.042468,0.00017808,2]
[358933107,1745554253713,-541.14,0.00017808,2]
[358933108,1745554253723,-661.483738,0.00017808,2]
[358933109,1745554253732,-661.483748,0.00017808,2]
[358933110,1745554253741,-2404.57,0.00017808,2]
[358933111,1745554253751,-1356.89,0.00017808,2]
[358933112,1745554253760,-1284.72,0.00017808,2]
[358933113,1745554253770,-151.0,0.00017808,2]
[358933114,1745554253779,-1420.05,0.00017808,2]
[358933115,1745554253789,-151.0,0.00017808,2]
[358933116,1745554253798,-1169.66,0.00017808,2]
[358933117,1745554253808,-1481.05,0.00017808,2]
[358933118,1745554253818,-1110.54,0.00017808,2]
[358933119,1745554253827,-2629.38,0.00017808,2]
[358933120,1745554253836,-500.0,0.00017808,2]
[358933121,1745554253846,-500.0,0.00017808,2]
[358933122,1745554253856,-1113.73,0.00017808,2]
[358933123,1745554253865,-500.0,0.00017808,2]
[358933124,1745554253875,-500.0,0.00017808,2]
[358933125,1745554253884,-892.5,0.00017808,2]
[358933126,1745554253894,-1190.0,0.00017808,2]
[358933127,1745554253903,-500.0,0.00017808,2]
[358933128,1745554253913,-1379.64,0.00017808,2]
[358933129,1745554253922,-553.22,0.00017808,2]
[358933130,1745554253932,-3490.12,0.00017808,2]
[358933131,1745554253941,-500.0,0.00017808,2]
[358933132,1745554253951,-500.0,0.00017808,2]
[358933133,1745554253960,-151.0,0.00017808,2]
[358933134,1745554253970,-511.2,0.00017808,2]
[358933135,1745554253979,-500.0,0.00017808,2]
[358933136,1745554253989,-3203.44,0.00017808,2]
[358933137,1745554253999,-1231.8,0.00017808,2]
[358933138,1745554254009,-884.35,0.00017808,2]
[358933139,1745554254018,-693.12,0.00017808,2]
[358933140,1745554254028,-1135.4,0.00017808,2]
[358933141,1745554254037,-1500.0,0.00017808,2]
[358933142,1745554254047,-7265.81529337,0.0001782,2]
[358933143,1745554254058,-400.13932042,0.0001782,2]
[358933144,1745554254067,-151.0,0.000179,2]
[358933145,1745554254077,-500.0,0.00017973,2]
[358933146,1745554254087,-500.0,0.00017973,2]
[358933147,1745554254096,-500.0,0.00017973,2]
[358933148,1745554254105,-151.0,0.00017973,2]
[358933149,1745554254116,-151.0,0.00017973,2]
[358933150,1745554254125,-151.0,0.00017973,2]
[358933151,1745554254134,-10718.92760512,0.00018,5]
[358933152,1745554254143,-167521.59850438,0.00018,2]
[358933153,1745554254275,-13859.75596783,0.00018,2]
[358933154,1745554268283,250.0,0.00014977,2]
[358933155,1745554344524,500.0,0.0003835,60]
[358933156,1745554531409,150.0,0.000375,112]
[358933158,1745554871013,340.9725452,0.00014908,2]
[358933160,1745555119032,9985.9,0.00015,2]
[358933161,1745555126928,198612.61419656,0.00038356,120]
[358933164,1745555238167,-218.748371,0.00015057,2]
[358933165,1745555238192,-300.0,0.00015065,2]
[358933166,1745555238217,-472.40337109,0.00015066,2]
[358933167,1745555247094,-27.59662891,0.00015066,2]
[358933168,1745555247116,-137.33569181,0.00015066,2]
[358933183,1745555318224,669.79062919,0.0001,7]
[358933184,1745555353112,-300.0,0.00015064,2]
[358933185,1745555353134,-168.8459612,0.00015065,2]
[358933186,1745555353158,-524.76389074,0.00015065,2]
[358933187,1745555353188,-500.0,0.00015065,2]
[358933188,1745555353210,-500.0,0.00015065,2]
[358933189,1745555353232,-500.0,0.00015065,2]
[358933190,1745555353256,-500.0,0.00015065,2]
[358933191,1745555353287,-500.0,0.00015065,2]
[358933192,1745555353310,-500.0,0.00015065,2]
[358933193,1745555353339,-500.0,0.00015065,2]
[358933194,1745555353366,-500.0,0.00015065,2]
[358933195,1745555353390,-500.0,0.00015065,2]
[358933196,1745555353412,-354.01060248,0.00015065,2]
[358933197,1745555353440,-500.0,0.00015065,2]
[358933198,1745555353462,-500.0,0.00015065,2]
[358933199,1745555353664,-500.0,0.00015065,2]
[358933200,1745555353694,-500.0,0.00015065,2]
[358933201,1745555353718,-500.0,0.00015065,2]
[358933202,1745555353747,-500.0,0.00015065,2]
[358933203,1745555353771,-500.0,0.00015065,2]
[358933204,1745555353792,-500.0,0.00015065,2]
[358933205,1745555353815,-500.0,0.00015065,2]
[358933206,1745555353845,-500.0,0.00015065,2]
[358933207,1745555353868,-500.0,0.00015065,2]
[358933208,1745555353898,-500.0,0.00015065,2]
[358933209,1745555353921,-500.0,0.00015065,2]
[358933210,1745555353953,-500.0,0.00015065,2]
[358933211,1745555353975,-500.0,0.00015065,2]
[358933212,1745555354006,-500.0,0.00015065,2]
[358933213,1745555354030,-500.0,0.00015065,2]
[358933214,1745555354052,-293.81933,0.00015065,2]
[358933215,1745555354084,-500.0,0.00015065,2]
[358933216,1745555354107,-500.0,0.00015065,2]
[358933217,1745555354137,-500.0,0.00015065,2]
[358933218,1745555354161,-500.0,0.00015065,2]
[358933219,1745555354191,-500.0,0.00015065,2]
[358933220,1745555354214,-500.0,0.00015065,2]
[358933221,1745555354244,-500.0,0.00015065,2]
[358933222,1745555354274,-387.15033334,0.00015065,2]
[358933223,1745555354298,-892.0,0.00015067,2]
[358933224,1745555354318,-798.6224376,0.00015104,2]
[358933225,1745555354340,-4573.213626,0.00015211,2]
[358933226,1745555354360,-535.8427164,0.00015428,2]
[358933227,1745555354382,-481.9098625,0.00015442,2]
[358933228,1745555354403,-20.74474382,0.00015905,2]
[358933229,1745555360072,-308.0570554,0.00015905,2]
[358933230,1745555360093,-182.28894901,0.00016164,2]
[358933239,1745555410130,170.63213991,6.8e-07,2]
[358933240,1745555410418,170.63213991,6.5e-07,2]
[358933241,1745555410458,170.63213991,6.2e-07,2]
[358933242,1745555410489,170.63213991,5.8e-07,2]
[358933243,1745555410578,170.63213991,5.5e-07,2]
[358933244,1745555410683,170.63213991,5.1e-07,2]
[358933265,1745555432489,-1098.08248956,0.00016338,2]
[358933266,1745555432499,-621.95775786,0.00016338,2]
[358933267,1745555432508,-857.19150297,0.00016338,2]
[358933268,1745555432519,-70.03727512,0.00016338,2]
[358933269,1745555432529,-500.0,0.00016428,2]
[358933270,1745555432539,-207.4,0.00016428,2]
[358933271,1745555432548,-252.0,0.00016437,2]
[358933272,1745555432558,-501.07190975,0.00016438,2]
[358933273,1745555432568,-500.0,0.00016438,2]
[358933274,1745555432577,-500.0,0.00016438,2]
[358933275,1745555432586,-219.49081513,0.00016438,2]
[358933276,1745555432597,-280.50918487,0.00016438,2]
[358933277,1745555432607,-500.0,0.00016438,2]
[358933278,1745555432617,-500.0,0.00016438,2]
[358933279,1745555432626,-500.0,0.00016438,2]
[358933280,1745555432636,-500.0,0.00016438,2]
[358933281,1745555432645,-500.0,0.00016438,2]
[358933282,1745555432657,-500.0,0.00016438,2]
[358933283,1745555432667,-501.99317094,0.00016438,2]
[358933284,1745555432677,-500.0,0.00016438,2]
[358933285,1745555432686,-167.49764419,0.00016438,2]
[358933287,1745555432702,-143.0525447,0.00016438,2]
[358933289,1745555432711,-527.58561566,0.00016438,2]
[358933291,1745555432720,-500.0,0.00016438,2]
[358933293,1745555432730,-500.0,0.00016438,2]
[358933295,1745555432739,-500.0,0.00016438,2]
[358933297,1745555432749,-500.0,0.00016438,2]
[358933299,1745555432758,-500.0,0.00016438,2]
[358933301,1745555432767,-500.0,0.00016438,2]
[358933303,1745555432778,-500.0,0.00016438,2]
[358933305,1745555432788,-500.0,0.00016438,2]
[358933307,1745555432797,-500.0,0.00016438,2]
[358933311,1745555432819,-500.0,0.00016438,2]
[358933313,1745555432830,-500.0,0.00016438,2]
[358933315,1745555432840,-154.27976671,0.00016438,2]
[358933317,1745555432850,-500.0,0.00016438,2]
[358933319,1745555432860,-502.70391723,0.00016438,2]
[358933321,1745555432870,-500.0,0.00016438,2]
[358933323,1745555432880,-500.0,0.00016438,2]
[358933325,1745555432890,-500.0,0.00016438,2]
[358933327,1745555432900,-500.0,0.00016438,2]
[358933329,1745555432910,-500.0,0.00016438,2]
[358933332,1745555432920,-1000.0,0.00016438,2]
[358933334,1745555432930,-500.0,0.00016438,2]
[358933335,1745555432940,-504.00391588,0.00016438,2]
[358933336,1745555432950,-500.0,0.00016438,2]
[358933337,1745555432960,-500.0,0.00016438,2]
[358933338,1745555432970,-500.0,0.00016438,2]
[358933339,1745555432984,-500.0,0.00016438,2]
[358933340,1745555432994,-500.0,0.00016438,2]
[358933341,1745555433004,-500.0,0.00016438,2]
[358933342,1745555433015,-156.21317726,0.00016438,2]
[358933343,1745555433031,-343.78682274,0.00016438,2]
[358933344,1745555433042,-500.0,0.00016438,2]
[358933345,1745555433054,-500.0,0.00016438,2]
[358933346,1745555433063,-500.0,0.00016438,2]
[358933347,1745555433074,-500.0,0.00016438,2]
[358933348,1745555433085,-541.0,0.00016438,2]
[358933349,1745555433096,-500.0,0.00016438,2]
[358933350,1745555433106,-500.0,0.00016438,2]
[358933351,1745555433116,-500.0,0.00016438,2]
[358933352,1745555433126,-500.0,0.00016438,2]
[358933353,1745555433136,-500.0,0.00016438,2]
[358933354,1745555433147,-500.0,0.00016438,2]
[358933355,1745555433158,-500.0,0.00016438,2]
[358933356,1745555433168,-500.0,0.00016438,2]
[358933357,1745555433178,-500.0,0.00016438,2]
[358933358,1745555433187,-500.0,0.00016438,2]
[358933359,1745555433197,-500.0,0.00016438,2]
[358933360,1745555433207,-500.0,0.00016438,2]
[358933361,1745555433217,-500.0,0.00016438,2]
[358933362,1745555433228,-500.0,0.00016438,2]
[358933363,1745555433238,-500.0,0.00016438,2]
[358933364,1745555433248,-500.0,0.00016438,2]
[358933365,1745555433258,-500.0,0.00016438,2]
[358933366,1745555433268,-500.0,0.00016438,2]
[358933367,1745555433277,-500.0,0.00016438,2]
[358933368,1745555433287,-506.53510236,0.00016438,2]
[358933369,1745555433297,-500.0,0.00016438,2]
[358933370,1745555433307,-505.06526652,0.00016438,2]
[358933371,1745555433317,-500.0,0.00016438,2]
[358933372,1745555433326,-500.0,0.00016438,2]
[358933373,1745555433338,-500.0,0.00016438,2]
[358933374,1745555433347,-500.0,0.00016438,2]
[358933375,1745555433357,-500.0,0.00016438,2]
[358933376,1745555433367,-502.03940602,0.00016438,2]
[358933377,1745555433376,-500.0,0.00016438,2]
[358933378,1745555433386,-500.0,0.00016438,2]
[358933379,1745555433397,-500.0,0.00016438,2]
[358933380,1745555433407,-275.23715242,0.00016438,2]
[358933381,1745555433418,-500.0,0.00016438,2]
[358933382,1745555433432,-500.0,0.00016438,2]
[358933383,1745555433443,-509.78806396,0.00016438,2]
[358933384,1745555433452,-500.0,0.00016438,2]
[358933385,1745555433462,-504.88708247,0.00016438,2]
[358933386,1745555433472,-500.0,0.00016438,2]
[358933387,1745555433482,-500.0,0.00016438,2]
[358933388,1745555433493,-500.0,0.00016438,2]
[358933389,1745555433503,-500.0,0.00016438,2]
[358933390,1745555433513,-500.0,0.00016438,2]
[358933391,1745555433523,-500.0,0.00016438,2]
[358933392,1745555433534,-500.0,0.00016438,2]
[358933393,1745555433544,-500.0,0.00016438,2]
[358933394,1745555433555,-500.0,0.00016438,2]
[358933395,1745555433565,-500.0,0.00016438,2]
[358933396,1745555433575,-397.45076965,0.00016438,2]
[358933397,1745555433586,-500.0,0.00016438,2]
[358933398,1745555433596,-500.0,0.00016438,2]
[358933399,1745555433605,-500.0,0.00016438,2]
[358933400,1745555433615,-511.45642892,0.00016438,2]
[358933401,1745555433626,-500.0,0.00016438,2]
[358933402,1745555433636,-502.68557797,0.00016438,2]
[358933403,1745555433646,-500.0,0.00016438,2]
[358933404,1745555433656,-500.0,0.00016438,2]
[358933405,1745555433666,-510.11381172,0.00016438,2]
[358933406,1745555433676,-500.0,0.00016438,2]
[358933407,1745555433686,-500.0,0.00016438,2]
[358933408,1745555433696,-500.0,0.00016438,2]
[358933409,1745555433706,-500.0,0.00016438,2]
[358933410,1745555433715,-1015.01,0.00016438,2]
[358933411,1745555433725,-500.0,0.00016438,2]
[358933412,1745555433736,-506.02121317,0.00016438,2]
[358933413,1745555433746,-523.31928332,0.00016438,2]
[358933414,1745555433756,-501.69204204,0.00016438,2]
[358933415,1745555433766,-500.0,0.00016438,2]
[358933416,1745555433777,-502.40451626,0.00016438,2]
[358933417,1745555433787,-509.71667547,0.00016438,2]
[358933418,1745555433797,-500.0,0.00016438,2]
[358933419,1745555433807,-500.0,0.00016438,2]
[358933420,1745555433818,-500.0,0.00016438,2]
[358933421,1745555433827,-501.7156328,0.00016438,2]
[358933422,1745555433837,-504.86369164,0.00016438,2]
[358933423,1745555433846,-503.41023609,0.00016438,2]
[358933424,1745555433856,-500.0,0.00016438,2]
[358933425,1745555433865,-629.14805957,0.00016438,2]
[358933426,1745555433876,-515.26726941,0.00016438,2]
[358933427,1745555433886,-500.0,0.00016438,2]
[358933428,1745555433896,-500.0,0.00016438,2]
[358933429,1745555433907,-500.0,0.00016438,2]
[358933430,1745555433917,-504.11634984,0.00016438,2]
[358933431,1745555433927,-500.0,0.00016438,2]
[358933432,1745555433938,-181.31792227,0.00016438,2]
[358933433,1745555433948,-500.0,0.00016438,2]
[358933434,1745555433958,-513.25774723,0.00016438,2]
[358933435,1745555433968,-500.0,0.00016438,2]
[358933436,1745555433982,-500.0,0.00016438,2]
[358933437,1745555433992,-294.51632704,0.00016438,2]
[358933438,1745555434002,-505.14290323,0.00016438,2]
[358933439,1745555434012,-500.0,0.00016438,2]
[358933440,1745555434022,-500.0,0.00016438,2]
[358933441,1745555434032,-500.0,0.00016438,2]
[358933442,1745555434042,-500.0,0.00016438,2]
[358933443,1745555434055,-500.0,0.00016438,2]
[358933444,1745555434065,-500.0,0.00016438,2]